Cogmind - Beta 11 X7 @@@ ROGUE MODE // 2021.09.18 @ 12:51:09 Player: Plexion Result: Self-destructed Performance ------------- Evolutions (4) 2000 Regions Visited (14) 2800 Robots Destroyed (142) 710 Value Destroyed (4138) 4138 Prototype IDs (37) 740 Alien Tech Used (0) 0 Bonus (1221) 1221 TOTAL SCORE: 11609 Bonus ------- High Alert Combat Kills 268 Follower Combat Kills 1593 Aligned with FarCom 300 Friendly Fire -940 Cogmind --------- Core Integrity 603/850 Matter 300/300 Energy 290/290 System Corruption 8% Temperature Cool (0) Movement Treading (160) Location -6/Cetus Parts ------- > --- POWER (1) -------- Improved Deuterium Engine > --- PROPULSION (4) --- Centrium Heavy Treads Centrium Heavy Treads > --- UTILITY (8) ------ Improved Heat Sink Advanced Heat Sink Medium Storage Unit Experimental Targeting Computer Improved Light Armor Plating Centrium Medium Armor Plating Centrium Medium Armor Plating Centrium Medium Armor Plating > --- WEAPON (2) ------- Improved KE Penetrator > --- INVENTORY (10) --- Flexi-carbon Leg Myomer Leg Hardened Light Armor Plating Improved Light Armor Plating Damper Plating Dynamic Insulation System Thief Drone Bay (3/3) Peak State ------------ > --- POWER ------------ Improved Deuterium Engine > --- PROPULSION ------- Centrium Heavy Treads Centrium Heavy Treads > --- UTILITY ---------- Improved Heat Sink Advanced Heat Sink Medium Storage Unit Experimental Targeting Computer Improved Light Armor Plating Centrium Medium Armor Plating Centrium Medium Armor Plating Centrium Medium Armor Plating > --- WEAPON ----------- Improved KE Penetrator > --- INVENTORY -------- Flexi-carbon Leg Myomer Leg Hardened Light Armor Plating Improved Light Armor Plating Damper Plating Dynamic Insulation System Thief Drone Bay [Rating: 98] Favorites ----------- Power Ion Engine Engine Ion Engine Power Core Reinforced Fission Core Propulsion Light Treads Treads Light Treads Leg Advanced Myomer Leg Wheel Wheel Flight Unit Cooled Cesium-ion Thruster Utility Large Storage Unit Device Active Sensor Suite Storage Large Storage Unit Processor Experimental Targeting Computer Hackware System Shield Protection Hardened Light Armor Plating Weapon Improved Assault Rifle Energy Gun EM Pulse Gun Energy Cannon Heavy Phase Cannon Ballistic Gun Improved Assault Rifle Ballistic Cannon Light Cannon Launcher Mini Grenade Launcher Special Weapon Plasma Cutter Slashing Weapon Ripper Build | -11 -10 -10 -9 -9 -9 -8 -8 -7 -7 -7 -7 -6 -6 -6 ------- Run | Scr Mat Min Mat Min Exi Min Mat Fac Was Fac Sto Fac Ext Cet Slots Evolved 8 | . . . 2 . . . 2 2 . . . 2 . . Power . | . . . . . . . . . . . . . . . Propulsion 2 | . . . 1 . . . 1 . . . . . . . Utility 6 | . . . 1 . . . 1 2 . . . 2 . . Weapon . | . . . . . . . . . . . . . . . Parts Attached 150 | 6 5 5 27 6 14 6 13 10 7 1 5 12 26 7 Power 12 | 1 1 1 2 . 2 . . . 1 . . 2 2 . Engine 9 | 1 1 1 2 . 1 . . . . . . 2 1 . Core 3 | . . . . . 1 . . . 1 . . . 1 . Reactor . | . . . . . . . . . . . . . . . Propulsion 44 | 2 . 1 8 . 2 2 5 2 3 . . 6 11 2 Treads 18 | . . . 7 . 2 . 2 2 3 . . . . 2 Leg 16 | . . . . . . . 2 . . . . 3 11 . Wheel 7 | 2 . 1 1 . . 2 1 . . . . . . . Hover . | . . . . . . . . . . . . . . . Flight 3 | . . . . . . . . . . . . 3 . . Utility 38 | 1 1 2 6 3 4 . 1 1 2 . 3 1 10 3 Device 14 | . . 1 1 1 3 . 1 . 1 . 2 1 3 . Storage 4 | 1 1 . 1 . . . . . . . . . 1 . Processor 3 | . . . . . 1 . . 1 . . 1 . . . Hackware 1 | . . . . . . . . . . . . . 1 . Protection 16 | . . 1 4 2 . . . . 1 . . . 5 3 Artifact . | . . . . . . . . . . . . . . . Weapon 56 | 2 3 1 11 3 6 4 7 7 1 1 2 3 3 2 Energy Gun 2 | 1 . . . . . . . . . . . . . 1 Energy Cannon 2 | . . . . . . . . 1 1 . . . . . Ballistic Gun 26 | 1 . . 7 1 4 2 4 3 . . 1 2 . 1 Ballistic Cannon 4 | . 1 1 1 . . . . . . . . . 1 . Launcher 16 | . 2 . 3 2 . 2 3 1 . 1 1 1 . . Special Weapon 3 | . . . . . 1 . . 2 . . . . . . Impact Weapon . | . . . . . . . . . . . . . . . Slashing Weapon 3 | . . . . . 1 . . . . . . . 2 . Piercing Weapon . | . . . . . . . . . . . . . . . Special Melee Weapon . | . . . . . . . . . . . . . . . Unidentified Prototypes 14 | . . 1 1 1 4 . 2 . . . 1 1 . 3 Corrupted Parts 2 | . . . . . . . . . . . . 1 1 . System Corruption 7 | . . . . . . . . . . . . 6 1 . Parts Lost 34 | . . 2 3 1 5 . 7 . . . 9 . 6 1 Power 5 | . . 1 . . 1 . . . . . 1 . 2 . Propulsion 12 | . . 1 2 . 2 . 4 . . . 2 . 1 . Utility 8 | . . . 1 1 1 . 2 . . . 2 . 1 . Weapon 9 | . . . . . 1 . 1 . . . 4 . 2 1 Highest Loss Streak 8 | . . 2 1 1 5 . 7 . . . 8 . 4 1 Average Slot Usage (%) 80 | . 85 91 97 100 99 100 73 70 70 68 35 42 70 94 Engine 5 | . 14 12 11 11 10 . . . . . . 4 2 6 Core 3 | . . . . . . 11 9 7 7 7 3 . 2 . Treads 16 | . . . 28 33 33 12 10 15 20 22 8 . . 2 Leg 5 | . . . . . . . 11 15 4 . . 16 17 20 Wheel 4 | . 28 26 4 . . 20 5 . . . . . . . Device 3 | . . . . . . 11 8 7 4 7 3 3 4 13 Storage 8 | . 14 14 11 11 11 11 9 7 7 7 6 . 2 6 Processor 1 | . . . . . 1 . . 1 5 . . 6 6 6 Protection 11 | . . 8 20 22 20 11 1 . 4 7 3 . 15 25 Energy Cannon 1 | . . . . . . . . 4 6 7 3 . . . Ballistic Gun 10 | . 7 . 19 11 9 21 15 8 8 6 2 5 3 2 Ballistic Cannon 2 | . 10 23 2 . . . . . . . . . 1 2 Launcher 2 | . 6 4 . 10 7 . 1 1 . . 3 1 . . Naked Turns 2 | . . . . . . . . . . . 2 . . . Heaviest Build 99 | 13 21 22 39 39 52 52 53 58 99 86 84 25 51 52 Greatest Support 160 | 20 20 26 60 60 60 60 60 60 110 110 40 45 90 160 Greatest Overweight (x) 8 | 1 1 1 2 . . 5 5 . . 2 8 1 . . Average Overweight (x) . | . . . . . . 1 . . . . 1 . . . Largest Inventory Capacity 15 | 8 10 10 15 15 15 15 15 15 15 15 15 5 10 10 Average Capacity 12 | 7 8 10 10 15 15 15 15 15 15 15 14 5 6 10 Most Carried 15 | 4 7 10 11 13 15 15 15 15 15 15 15 5 9 10 Average Carried 11 | 2 5 8 9 10 13 15 13 14 14 15 14 5 5 9 Final Capacity 15 | 8 10 10 15 15 15 15 15 15 15 15 5 5 10 10 Final Carried 15 | 4 6 9 11 13 15 15 13 15 15 15 5 5 9 10 Class Distribution -------------------- 56% | Scavenger-Mutant 36% | Mutant 5% | Scavenger-Skirmisher Dominant Class ---------------- Mutant | -10/Materials Mutant | -10/Mines Scavenger-Mutant | -9/Materials Scavenger-Mutant | -9/Mines Scavenger-Mutant | -9/Exiles Scavenger-Mutant | -8/Mines Scavenger-Skirmisher | -8/Materials Scavenger-Mutant | -7/Factory Mutant | -7/Waste Mutant | -7/Factory Mutant | -7/Storage Mutant | -6/Factory Scavenger-Mutant | -6/Extension Scavenger-Mutant | -6/Cetus Resources | -11 -10 -10 -9 -9 -9 -8 -8 -7 -7 -7 -7 -6 -6 -6 ----------- Run | Scr Mat Min Mat Min Exi Min Mat Fac Was Fac Sto Fac Ext Cet Matter Collected 3881 | 237 9 295 863 105 120 95 472 242 206 107 146 234 649 101 Remotely . | . . . . . . . . . . . . . . . Salvage Created 4854 | . 21 25 1281 171 120 159 699 535 243 283 327 103 778 109 Parts 285 | . 3 2 72 13 10 20 58 29 . 18 15 5 35 5 Haulers Intercepted 7 | . . . 4 . . . 1 2 . . . . . . Recyclers Shooed 8 | . . . 2 . . . 1 . . . 3 . 2 . Parts Field Recycled . | . . . . . . . . . . . . . . . Retrieved Matter . | . . . . . . . . . . . . . . . Parts Self-Destructed . | . . . . . . . . . . . . . . . Prevented . | . . . . . . . . . . . . . . . Kills | -11 -10 -10 -9 -9 -9 -8 -8 -7 -7 -7 -7 -6 -6 -6 ------- Run | Scr Mat Min Mat Min Exi Min Mat Fac Was Fac Sto Fac Ext Cet Combat Hostiles Destroyed 110 | . 3 10 27 8 1 10 18 14 1 4 5 1 7 1 Melee 3 | . . . . . 1 . . . . . . . 2 . Guns 28 | . . . 11 . . 1 7 3 . . 3 . 2 1 Cannons 18 | . . 3 7 . . . . 1 1 2 1 . 3 . AOE 61 | . 3 7 9 8 . 9 11 10 . 2 1 1 . . Classes Destroyed 19 | . 1 3 8 . . 1 2 1 1 . 2 . . . Worker 9 | . . 1 . 1 . 1 1 1 . 2 1 1 . . Builder 6 | . . . 2 . . 1 3 . . . . . . . Tunneler 2 | . . . . . . 2 . . . . . . . . Hauler 7 | . . . 4 . . . 1 2 . . . . . . Recycler 8 | . . . 3 . . . 1 1 . . 1 . 2 . Mechanic 1 | . . . . . . . 1 . . . . . . . Operator 2 | . . . . . . . . . . . 1 . 1 . Watcher 3 | . . . 1 . . . . . . . . . 1 1 Swarmer 30 | . 3 . 4 3 . 7 8 4 . 1 . . . . Grunt 44 | . . . 14 5 . 3 7 9 . 2 2 . 2 . Brawler 1 | . . . 1 . . . . . . . . . . . Duelist 3 | . . . 1 . . . 1 . . . 1 . . . Sentry 13 | . . . 7 . . . 1 . . . 1 1 3 . Demolisher 1 | . . 1 . . . . . . . . . . . . Hunter 2 | . . . . . . . . . . . 1 . 1 . Programmer 2 | . . . . . . . . 1 . 1 . . . . Heavy 2 | . . . . . . . 1 . . . . . 1 . Compactor 1 | . . . . . . . . . 1 . . . . . Cetus Guard 1 | . . . . . . . . . . . . . . 1 Assembled 9 | . . 9 . . . . . . . . . . . . Martyr 2 | . . . . . . . . . . 2 . . . . Guerrilla 1 | . . . . . . . . . . . . . 1 . Best Kill Streak 12 | . 3 6 6 4 1 8 11 12 1 4 5 2 2 2 Combat Bots Only 11 | . 3 5 5 3 1 7 9 11 1 2 2 1 1 1 Max Kills in Single Turn 4 | . 2 3 2 2 1 2 4 2 1 1 1 1 2 1 Gunslinging . | . . . . . . . . . . . . . . . Exploded 3 | . 2 3 2 2 . 2 3 2 . 1 1 1 . . Melee 1 | . . . . . 1 . . . . . . . 1 . Uniques/NPCs Destroyed 1 | . . . . . 1 . . . . . . . . . 8R-AWN (-9/Exiles) Combat | -11 -10 -10 -9 -9 -9 -8 -8 -7 -7 -7 -7 -6 -6 -6 -------- Run | Scr Mat Min Mat Min Exi Min Mat Fac Was Fac Sto Fac Ext Cet Damage Taken 8390 | . 90 263 999 73 706 201 985 504 20 1103 1730 230 1267 219 Core 1265 | . 14 59 92 16 102 20 224 44 20 36 391 90 133 24 Absorbed by Shields 279 | . . . . . . . . . . . . . 217 62 Core Remaining (%) 60 | 100 . 70 . . . 42 59 . . . 29 . . . Volleys Fired 374 | . 7 15 92 7 4 18 36 40 2 43 27 7 68 8 Largest 2 | . 2 2 2 1 1 2 2 2 2 2 1 1 1 1 Hottest 121 | . 55 74 62 30 20 46 60 98 121 121 98 39 57 75 Shots Fired 537 | . 11 24 174 7 4 24 62 59 4 52 30 8 69 9 Gun 319 | . 4 . 130 . . 12 53 38 2 10 17 1 47 5 Cannon 141 | . 4 18 34 . . . . 11 2 38 8 . 22 4 Launcher 73 | . 3 6 10 7 . 12 9 10 . 4 5 7 . . Special 4 | . . . . . 4 . . . . . . . . . Kinetic 398 | . 8 18 164 . . 12 53 38 2 10 17 1 69 6 Thermal 66 | . . . . . 4 . . 11 2 38 8 . . 3 Explosive 65 | . 3 6 10 7 . 12 9 10 . 4 4 . . . Electromagnetic 8 | . . . . . . . . . . . 1 7 . . Robot Hit Streak 14 | . 3 2 12 8 10 4 10 6 7 11 9 5 14 6 Robot Miss Streak 6 | . 2 4 3 . 1 1 4 3 . 3 2 . 6 1 Penetration Max 2 | . . . . . . . . . . . 1 . 2 . Secondary Targets 1 | . . . 1 . . . . . . . . . . . Max Gunslinging Chain 1 | . . . 1 . . . . . . . . . . . Shots Hit Robots 364 | . 6 11 121 6 21 11 35 29 1 25 20 5 66 7 Core Hits 276 | . 4 19 63 11 5 21 41 32 2 22 20 5 26 5 Critical Kills 7 | . . . . . . 1 . . . . 3 . 3 . Critical Parts Destroyed 16 | . . . 2 . . . 2 . . . 5 . 5 2 Critical Strikes 33 | . . 1 4 . . 1 3 . . . 8 . 13 3 Burn 1 | . . . . . . . . . . . . . . 1 Destroy 27 | . . . 2 . . 1 3 . . . 8 . 11 2 Blast 3 | . . 1 2 . . . . . . . . . . . Sever 2 | . . . . . . . . . . . . . 2 . Melee Attacks 37 | . . . . . 19 . . . . . . . 18 . Impact . | . . . . . . . . . . . . . . . Slashing 37 | . . . . . 19 . . . . . . . 18 . Piercing . | . . . . . . . . . . . . . . . Sneak Attacks 4 | . . . . . . . . . . . . . 4 . Combat Hostiles . | . . . . . . . . . . . . . . . Follow-up Attacks . | . . . . . . . . . . . . . . . Damage Inflicted 13709 | . 226 592 2542 583 820 905 1548 1621 55 1304 865 183 2306 159 Guns 3789 | . 23 . 1260 . . 101 534 378 21 87 236 . 1076 73 Cannons 2187 | . 50 156 497 . . . . 101 34 708 208 . 347 86 Explosions 6030 | . 153 436 785 583 . 804 1014 1142 . 509 421 183 . . Melee 1700 | . . . . . 817 . . . . . . . 883 . Ramming . | . . . . . . . . . . . . . . . Kinetic 4864 | . 73 156 1757 . . 101 534 378 21 87 236 . 1423 98 Thermal 1195 | . . . . . 3 . . 101 34 788 208 . . 61 Explosive 5666 | . 153 436 785 583 . 804 1014 1142 . 429 320 . . . Electromagnetic 284 | . . . . . . . . . . . 101 183 . . Impact . | . . . . . . . . . . . . . . . Slashing 1700 | . . . . . 817 . . . . . . . 883 . Piercing . | . . . . . . . . . . . . . . . Highest Corruption 13 | . . . . . . . . 1 11 13 13 6 8 8 Average Corruption 7 | . . . . . . . . 1 9 11 13 6 7 8 Corruption Purged . | . . . . . . . . . . . . . . . Effects 102 | . . . . . . . . 4 7 37 16 6 30 2 Message Errors 27 | . . . . . . . . 3 1 11 3 1 7 1 Matter Fused 17 | . . . . . . . . . 2 7 1 3 4 . Heat Flow Errors 12 | . . . . . . . . . . 2 3 . 7 . Energy Discharges 9 | . . . . . . . . . 1 3 . . 5 . Parts Rejected 1 | . . . . . . . . . . 1 . . . . Data Loss (minor) 14 | . . . . . . . . 1 2 6 1 . 4 . Data Loss (major) 7 | . . . . . . . . . 1 1 2 1 2 . Misfires 9 | . . . . . . . . . . 2 4 1 1 1 Misdirections 3 | . . . . . . . . . . 2 1 . . . Weapon Failures 3 | . . . . . . . . . . 2 1 . . . Overload Shots . | . . . . . . . . . . . . . . . Overflow Damage 279 | . . 1 31 33 . 13 10 26 . 88 10 7 60 . Projectiles 43 | . . . . . . . . . . 33 10 . . . Explosions 176 | . . 1 31 33 . 13 10 26 . 55 . 7 . . Melee 60 | . . . . . . . . . . . . . 60 . Knockbacks 8 | . . 1 4 . . . . . . . . . 3 . Impact . | . . . . . . . . . . . . . . . Kinetic 7 | . . 1 3 . . . . . . . . . 3 . Secondary 1 | . . . 1 . . . . . . . . . . . Self-Inflicted Damage 384 | . 61 11 15 . . 34 10 46 . 117 90 . . . Shots 16 | . 2 3 1 . . 2 1 1 . 3 3 . . . Rammed . | . . . . . . . . . . . . . . . Targets Rammed . | . . . . . . . . . . . . . . . Kicked . | . . . . . . . . . . . . . . . Crushed . | . . . . . . . . . . . . . . . Highest Temperature 375 | . 28 72 151 9 . . 24 216 99 236 335 2 375 21 Average Temperature 79 | . 13 21 38 7 . . 12 69 53 67 156 2 135 8 Received Heat Transfer 2163 | . . 40 426 24 . 27 207 189 9 180 753 51 239 18 Effects 6 | . . . . . . . . . . . 2 . 4 . Energy Bleed 1 | . . . . . . . . . . . . . 1 . Interference 4 | . . . . . . . . . . . 1 . 3 . Matter Decay 1 | . . . . . . . . . . . 1 . . . Siege Activations . | . . . . . . . . . . . . . . . Robots Corrupted . | . . . . . . . . . . . . . . . Combat Hostiles . | . . . . . . . . . . . . . . . Parts Fried 3 | . . . . . . . . . . . . 3 . . Impact Corruptions . | . . . . . . . . . . . . . . . Robots Melted . | . . . . . . . . . . . . . . . Combat Hostiles . | . . . . . . . . . . . . . . . Parts Melted 1 | . . . . . . . . . . . . . . 1 Heat Transferred 1334 | . . . . . 27 . . 111 37 752 222 . . 185 Parts Sabotaged . | . . . . . . . . . . . . . . . Parts Stolen . | . . . . . . . . . . . . . . . Parts Stripped . | . . . . . . . . . . . . . . . Power Chain Reactions 1 | . . . . . . . . . . . . 1 . . Missiles Intercepted . | . . . . . . . . . . . . . . . Alert | -11 -10 -10 -9 -9 -9 -8 -8 -7 -7 -7 -7 -6 -6 -6 ------- Run | Scr Mat Min Mat Min Exi Min Mat Fac Was Fac Sto Fac Ext Cet Peak Influence 710 | . 121 91 524 389 . 316 488 710 293 682 545 431 558 280 Initial 310 | . . 46 . 204 . . 44 221 248 205 310 242 131 204 Average 255 | . 42 64 334 275 . 160 209 235 276 295 414 309 206 241 Maximum Alert Level 3 | . . . 2 1 . 1 2 3 1 2 2 2 2 1 Low Security (%) 36 | 100 100 100 23 47 . 35 45 36 . 38 . . 46 . Level 1 48 | . . . 38 52 . 64 42 46 100 51 41 92 50 100 Level 2 14 | . . . 37 . . . 11 12 . 9 58 7 2 . Level 3 . | . . . . . . . . 3 . . . . . . Level 4 . | . . . . . . . . . . . . . . . Level 5 . | . . . . . . . . . . . . . . . High Security . | . . . . . . . . . . . . . . . Max Security . | . . . . . . . . . . . . . . . Squads Dispatched 20 | . . . 2 . . 1 1 5 . 3 2 2 4 . Investigation 5 | . . . 1 . . . . . . . . 1 3 . Extermination 2 | . . . . . . . . 1 . 1 . . . . Reinforcement 11 | . . . 1 . . 1 1 3 . 2 1 1 1 . Assault . | . . . . . . . . . . . . . . . Garrison 2 | . . . . . . . . 1 . . 1 . . . Intercept . | . . . . . . . . . . . . . . . Construction Impeded 5 | . . . 1 . . 1 . 1 . 1 . 1 . . Haulers Reinforced 1 | . . . . . . . . 1 . . . . . . Active Scanning Responses . | . . . . . . . . . . . . . . . Cargo Convoy Interrupts 2 | . . . . . . . . 1 . 1 . . . . Stealth | -11 -10 -10 -9 -9 -9 -8 -8 -7 -7 -7 -7 -6 -6 -6 --------- Run | Scr Mat Min Mat Min Exi Min Mat Fac Was Fac Sto Fac Ext Cet Distress Signals 17 | . 2 . 8 . . . 2 . . . 1 . 3 1 Communications Jammed . | . . . . . . . . . . . . . . . Distress Signals . | . . . . . . . . . . . . . . . Times Spotted 222 | . 5 10 44 8 1 10 21 18 3 26 19 11 35 11 Peak Tracking Total 17 | . 3 4 7 3 2 4 9 6 3 17 7 5 5 7 Tactical Retreats 10 | . . . 2 . . . . . . 1 3 2 2 . Traps | -11 -10 -10 -9 -9 -9 -8 -8 -7 -7 -7 -7 -6 -6 -6 ------- Run | Scr Mat Min Mat Min Exi Min Mat Fac Was Fac Sto Fac Ext Cet Traps Triggered 7 | . 2 . 1 . . . . 2 . 1 . . 1 . Indirectly . | . . . . . . . . . . . . . . . Trap Hack Attempts . | . . . . . . . . . . . . . . . Triggered . | . . . . . . . . . . . . . . . Disarmed . | . . . . . . . . . . . . . . . Reprogrammed . | . . . . . . . . . . . . . . . Reused . | . . . . . . . . . . . . . . . Traps Extracted . | . . . . . . . . . . . . . . . Installed . | . . . . . . . . . . . . . . . Triggered 2 | . . . . . . . . 2 . . . . . . Exploded 1 | . . . . . 1 . . . . . . . . . Machines | -11 -10 -10 -9 -9 -9 -8 -8 -7 -7 -7 -7 -6 -6 -6 ---------- Run | Scr Mat Min Mat Min Exi Min Mat Fac Was Fac Sto Fac Ext Cet Machines Disabled 24 | . . 1 2 . . . 1 1 . 8 2 1 7 1 Max in Single Turn 8 | . . 1 1 . . . 1 1 . 8 1 1 2 . Energy Cycler 2 | . . . . . . . . . . . . . 2 . Machines Sabotaged . | . . . . . . . . . . . . . . . Garrisons Compromised 1 | . . . . . . . . 1 . . . . . . Overloaded Fab Kills . | . . . . . . . . . . . . . . . Fab Network Shutdowns . | . . . . . . . . . . . . . . . Hacking | -11 -10 -10 -9 -9 -9 -8 -8 -7 -7 -7 -7 -6 -6 -6 --------- Run | Scr Mat Min Mat Min Exi Min Mat Fac Was Fac Sto Fac Ext Cet Machines Accessed 40 | . 1 1 9 . 2 1 . 3 . 2 2 4 15 . Terminals 35 | . 1 . 9 . . 1 . 1 . 2 2 4 15 . Fabricators 2 | . . . . . . . . 2 . . . . . . Repair Stations . | . . . . . . . . . . . . . . . Recycling Units . | . . . . . . . . . . . . . . . Scanalyzers . | . . . . . . . . . . . . . . . Garrison Access . | . . . . . . . . . . . . . . . Total Hacks 89 | . 2 1 18 . 2 4 . 11 . 7 3 11 30 . Successful 46 | . 2 1 7 . 2 3 . 7 . 3 1 5 15 . Failed 43 | . . . 11 . . 1 . 4 . 4 2 6 15 . Catastrophic 9 | . . . 3 . . 1 . . . 2 . 2 1 . Database Lockouts . | . . . . . . . . . . . . . . . Manual 53 | . 2 . 17 . 1 4 . 6 . 7 2 3 11 . Terminals 79 | . 2 . 18 . . 4 . 4 . 7 3 11 30 . Fabricators 7 | . . . . . . . . 7 . . . . . . Repair Stations . | . . . . . . . . . . . . . . . Recycling Units . | . . . . . . . . . . . . . . . Scanalyzers . | . . . . . . . . . . . . . . . Garrison Access . | . . . . . . . . . . . . . . . Terminal Hacks 28 | . 1 1 1 . 2 2 . 1 . 1 1 5 13 . Record 3 | . . . . . 1 . . . . . . 1 1 . Part Schematic 2 | . . . . . . 1 . 1 . . . . . . Robot Analysis 1 | . 1 . . . . . . . . . . . . . Open Door 10 | . . 1 . . . . . . . . 1 . 8 . Level Access Points 1 | . . . . . . . . . . . . 1 . . Branch Access Points 3 | . . . 1 . . . . . . 1 . 1 . . Fabricator Index 1 | . . . . . . . . . . . . 1 . . Unreport Threat 4 | . . . . . . . . . . . . . 4 . Locate Traps 1 | . . . . . . . . . . . . 1 . . Zone Layout 1 | . . . . . . 1 . . . . . . . . EX-Prototype ID Bank 1 | . . . . . 1 . . . . . . . . . Fabricator Hacks 3 | . . . . . . . . 3 . . . . . . Load Schematic 1 | . . . . . . . . 1 . . . . . . Build 2 | . . . . . . . . 2 . . . . . . Repair Station Hacks . | . . . . . . . . . . . . . . . Recycling Unit Hacks . | . . . . . . . . . . . . . . . Scanalyzer . | . . . . . . . . . . . . . . . Garrison Access Hacks . | . . . . . . . . . . . . . . . Unauthorized Hacks 15 | . 1 . 6 . . 1 . 3 . 2 . . 2 . Terminals 13 | . 1 . 6 . . 1 . 1 . 2 . . 2 . Track 7 | . 1 . 4 . . 1 . . . 1 . . . . Botnet 3 | . . . . . . . . . . 1 . . 2 . Disrupt 3 | . . . 2 . . . . 1 . . . . . . Fabricators 2 | . . . . . . . . 2 . . . . . . Prioritize 2 | . . . . . . . . 2 . . . . . . Repair Stations . | . . . . . . . . . . . . . . . Recycling Units . | . . . . . . . . . . . . . . . Scanalyzers . | . . . . . . . . . . . . . . . Garrison Access . | . . . . . . . . . . . . . . . Data Cores Recovered 2 | . . . . . . . . . . 1 1 . . . Used 1 | . . . . . . . . . . 1 . . . . Hacking Detections 25 | . . . 5 . . 1 . 2 . 2 1 4 10 . Full Trace Events 4 | . . . . . . . . . . . . 1 3 . Feedback Events . | . . . . . . . . . . . . . . . Feedback Blocked . | . . . . . . . . . . . . . . . Robot Schematics Acquired . | . . . . . . . . . . . . . . . Robots Built . | . . . . . . . . . . . . . . . Matter . | . . . . . . . . . . . . . . . Time . | . . . . . . . . . . . . . . . Total Robot Build Rating . | . . . . . . . . . . . . . . . Part Schematics Acquired 2 | . . . . . . 1 . 1 . . . . . . Parts Built 3 | . . . . . . . . 3 . . . . . . Matter 336 | . . . . . . . . 336 . . . . . . Time 168 | . . . . . . . . 168 . . . . . . Total Part Build Rating 14 | . . . . . . . . 14 . . . . . . Parts Repaired . | . . . . . . . . . . . . . . . Time . | . . . . . . . . . . . . . . . Parts Recycled . | . . . . . . . . . . . . . . . Recycled Matter . | . . . . . . . . . . . . . . . Retrieved Matter . | . . . . . . . . . . . . . . . Retrieved Components . | . . . . . . . . . . . . . . . Parts Scanalyzed . | . . . . . . . . . . . . . . . Part Schematics Acquired . | . . . . . . . . . . . . . . . Parts Damaged . | . . . . . . . . . . . . . . . Bothacking | -11 -10 -10 -9 -9 -9 -8 -8 -7 -7 -7 -7 -6 -6 -6 ------------ Run | Scr Mat Min Mat Min Exi Min Mat Fac Was Fac Sto Fac Ext Cet Used RIF Installer . | . . . . . . . . . . . . . . . Robots Hacked . | . . . . . . . . . . . . . . . Non-combat . | . . . . . . . . . . . . . . . Combat . | . . . . . . . . . . . . . . . Robot Hacks Applied . | . . . . . . . . . . . . . . . Relay Couplers Released . | . . . . . . . . . . . . . . . Robots Rewired 9 | . . . . . . . . . . . . . 9 . Allies Hacked . | . . . . . . . . . . . . . . . Hacks Repelled . | . . . . . . . . . . . . . . . Allies | -11 -10 -10 -9 -9 -9 -8 -8 -7 -7 -7 -7 -6 -6 -6 -------- Run | Scr Mat Min Mat Min Exi Min Mat Fac Was Fac Sto Fac Ext Cet Total Allies 44 | . . . . 1 . . . . 19 . . . 24 . Largest Group 19 | . . . . 1 . . . . 19 11 . . 10 6 Highest-Rated Group 487 | . . . . 31 . . . . 487 294 . . 419 289 Highest-Rated Ally 156 | . . . . 31 . . . . 35 35 . . 156 131 Total Orders 1 | . . . 1 . . . . . . . . . . . RETURN 1 | . . . 1 . . . . . . . . . . . Ally Attacks 321 | . . . . . . . . . 116 10 . . 165 30 Total Damage 7364 | . . . . . . . . . 3064 93 . . 3743 464 Kills 42 | . . . . . . . . . 8 1 . . 30 3 Allies Corrupted 2 | . . . . . . . . . . 1 . . 1 . Allies Melted 1 | . . . . . . . . . . . . . 1 . Intel | -11 -10 -10 -9 -9 -9 -8 -8 -7 -7 -7 -7 -6 -6 -6 ------- Run | Scr Mat Min Mat Min Exi Min Mat Fac Was Fac Sto Fac Ext Cet Robot Analysis Total 1 | . 1 . . . . . . . . . . . . . Derelict Logs Recovered 1 | . . . . 1 . . . . . . . . . . Drone Launches 1 | . . . 1 . . . . . . . . . . . Drone Recoveries 1 | . . . 1 . . . . . . . . . . . Exploration | -11 -10 -10 -9 -9 -9 -8 -8 -7 -7 -7 -7 -6 -6 -6 ------------- Run | Scr Mat Min Mat Min Exi Min Mat Fac Was Fac Sto Fac Ext Cet Turns Passed 8309 | 46 173 460 1520 768 684 419 347 980 216 776 372 503 961 84 Spaces Moved 5386 | 43 180 443 756 462 339 315 198 678 125 405 133 677 591 41 Core 205 | 7 . . . . . . . . . . 57 141 . . Treads 1913 | . . . 529 462 339 14 . . 83 405 76 . . 5 Legs 1655 | . . . . . . . 138 678 42 . . 300 461 36 Wheels 1247 | 36 180 443 227 . . 301 60 . . . . . . . Hover . | . . . . . . . . . . . . . . . Flight 366 | . . . . . . . . . . . . 236 130 . Fastest Speed 29 | 50 80 90 90 160 160 110 95 120 120 166 50 29 29 120 Average Speed 122 | 77 81 91 146 160 160 112 115 120 150 167 223 62 100 124 Slowest Speed 450 | 100 95 95 260 160 160 160 155 120 166 370 450 122 120 160 Overloaded Moves . | . . . . . . . . . . . . . . . Propulsion Burnouts . | . . . . . . . . . . . . . . . Robots Hopped 7 | . . . . . . . . . . . . 7 . . Cave-ins Triggered . | . . . . . . . . . . . . . . . Exploration Rate (%) 47 | 4 43 74 71 92 70 70 28 24 77 13 32 22 77 19 Regions Visited 14 Branch Regions 7 Pre-discovered Areas 1 | . . . . . 1 . . . . . . . . . Known Exits Taken 4 | . . . 1 . . . 1 . . 1 . 1 . . Unknown Exits Taken 8 | 1 1 1 . 1 1 1 . . . . 1 . 1 . Scrap Searched 4 | . . 1 . 2 . 1 . . . . . . . . Spaces Dug 21 | . 9 . . . . . . 2 1 6 . . 3 . Terrain Destroyed 448 | . 23 38 51 68 . 97 46 34 1 55 25 1 9 . Melee 3 | . . . . . . . . . . . . . 3 . Projectile 42 | . . 1 . . . . 6 7 1 16 5 . 6 . AOE 403 | . 23 37 51 68 . 97 40 27 . 39 20 1 . . Terrain Rammed . | . . . . . . . . . . . . . . . Walls Destroyed . | . . . . . . . . . . . . . . . Machines Disabled . | . . . . . . . . . . . . . . . Actions | -11 -10 -10 -9 -9 -9 -8 -8 -7 -7 -7 -7 -6 -6 -6 --------- Run | Scr Mat Min Mat Min Exi Min Mat Fac Was Fac Sto Fac Ext Cet Total 6497 | 52 196 471 1007 481 453 353 251 787 155 454 178 735 857 67 Wait 351 | . . . 106 4 65 13 1 47 3 6 12 40 52 2 Move 5359 | 42 179 442 755 461 338 314 197 678 124 404 132 662 590 41 Hop 7 | . . . . . . . . . . . . 7 . . Pick Up 42 | 4 2 5 9 3 7 . 2 6 2 . 2 . . . Fast Attach 71 | 6 3 4 3 . 4 2 4 2 3 . 1 12 21 6 Attach 24 | . 1 . 5 1 6 . 5 1 3 . 2 . . . Detach 19 | . 2 1 2 . 3 . 1 . 7 . . . 2 1 Swap 55 | . 1 1 19 5 4 4 4 7 1 1 2 . 5 1 Drop 64 | . 1 3 16 . 3 2 1 6 10 . . 7 7 8 Fire 374 | . 7 15 92 7 4 18 36 40 2 43 27 7 68 8 Melee 37 | . . . . . 19 . . . . . . . 18 . Ram . | . . . . . . . . . . . . . . . Kick . | . . . . . . . . . . . . . . . Crush . | . . . . . . . . . . . . . . . Escape Stasis . | . . . . . . . . . . . . . . . Rewire 94 | . . . . . . . . . . . . . 94 . Trap . | . . . . . . . . . . . . . . . Miscellaneous . | . . . . . . . . . . . . . . . Route ------- -11/Scrapyard -10/Materials (discovered 2 exits: *Mat / *Min) -10/Mines -9/Materials (discovered 2 exits: *Min x2) -9/Mines (discovered 3 exits: [*Mat x2] / *Exi) -9/Exiles -8/Mines -8/Materials -7/Factory (discovered 2 exits: *Sto x2) -7/Waste -7/Factory (discovered 5 exits: *Fac / *Sto x2 / Low x2) -7/Storage -6/Factory (discovered 8 exits: Fac x4 / Low x2 / *Ext x2) -6/Extension (discovered 2 exits: *Fac / [*Cet]) -6/Cetus History --------- Turn | Location | Event 16 | -11/Scrapyard | Discovered new exit (range 15) 47 | -11/Scrapyard | Entered Materials 146 | -10/Materials | Discovered new exit (range 5) 210 | -10/Materials | Discovered new exit (range 12) 220 | -10/Materials | Entered Mines 220 | -10/Mines | Discovered new exit (range 8) 221 | -10/Mines | Assembled infested the area 237 | -10/Mines | Found the Drone Emporium 240 | -10/Mines | Found Prototype Device 240 | -10/Mines | Identified Thief Drone Bay 267 | -10/Mines | A weapon hastily lodged in a ceiling crevice suddenly fell to the ground 300 | -10/Mines | Build established: Mutant 539 | -10/Mines | Found a hidden stash of uninstalled traps 680 | -10/Mines | Entered Materials 680 | -9/Materials | Evolved 2 slots: Propulsion x1, Utility x1 1310 | -9/Materials | Build established: Scavenger-Mutant 1462 | -9/Materials | Discovered new exit (range 12) 2131 | -9/Materials | Identified exit to Mines 2200 | -9/Materials | Entered Mines 2210 | -9/Mines | Learned Materials garrison access intel 2273 | -9/Mines | Discovered new exit (range 8) 2538 | -9/Mines | Discovered new exit (range 6) 2683 | -9/Mines | Received a Mining Laser from a helpful Derelict 2852 | -9/Mines | Found a damaged Exp. Sensor Array with a note attached 2855 | -9/Mines | Found Prototype Device 2864 | -9/Mines | Identified Exp. Sensor Array 2961 | -9/Mines | Deemed a non-threat by the Exiles lab entrance 2961 | -9/Mines | Discovered new exit (range 5) 2968 | -9/Mines | Entered Exiles 3008 | -9/Exiles | Met 8R-AWN 3034 | -9/Exiles | Met EX-HEX 3104 | -9/Exiles | Met EX-DEC 3135 | -9/Exiles | Learned location of Zion (-6) 3250 | -9/Exiles | Met EX-BIN 3269 | -9/Exiles | Aligned with FarCom system 3271 | -9/Exiles | Given EX-Vault access code 3308 | -9/Exiles | Opened EX-Vault 3320 | -9/Exiles | Found Longsword +1 3353 | -9/Exiles | Warned to stay clear of 0b10 Research branches 3374 | -9/Exiles | Exiles lab attacked by MAIN.C 3456 | -9/Exiles | Discovered new exit (range 10) 3539 | -9/Exiles | Attacked by the Exiles 3579 | -9/Exiles | Core integrity fell below 50% 3594 | -9/Exiles | Destroyed 8R-AWN 3600 | -9/Exiles | Found Prototype Ballistic Gun 3605 | -9/Exiles | Found Prototype Ballistic Gun 3614 | -9/Exiles | Found Prototype Processor 3617 | -9/Exiles | Found Prototype Device 3617 | -9/Exiles | Identified AS-neutralizer No. 17b 3621 | -9/Exiles | Lost 5 parts (1p2n1u1w) 3635 | -9/Exiles | Identified 8R-AWN's Boregun (x2) 3652 | -9/Exiles | Entered Mines 3803 | -8/Mines | Destroyed 7 combat bots 4066 | -8/Mines | Discovered new exit (range 5) 4071 | -8/Mines | Entered Materials 4071 | -8/Materials | Evolved 2 slots: Propulsion x1, Utility x1 4072 | -8/Materials | Loaded intel: 1 garrison access location 4204 | -8/Materials | Found Prototype Device 4204 | -8/Materials | Identified Active Sensor Suite 4208 | -8/Materials | Destroyed 7 combat bots 4214 | -8/Materials | Lost 7 parts (4n2u1w) 4401 | -8/Materials | Destroyed 9 combat bots 4413 | -8/Materials | Discovered new exit (range 4) 4416 | -8/Materials | Identified exit to Factory 4418 | -8/Materials | Entered Factory 4418 | -7/Factory | Evolved 2 slots: Utility x2 4566 | -7/Factory | Fabricated Hvy. Phase Cannon (x2) 4767 | -7/Factory | Discovered new exit (range 14) 4782 | -7/Factory | Identified exit to Storage 4917 | -7/Factory | Discovered exit to Storage (range 5) 5175 | -7/Factory | Cargo convoy interrupted 5217 | -7/Factory | Fabricated Armor Integrity Analyzer (x1) 5297 | -7/Factory | Garrison activated, responded to threat 5347 | -7/Factory | Destroyed 11 combat bots 5398 | -7/Factory | Sucked down chute 5398 | -7/Factory | Entered Waste 5413 | -7/Waste | EMP discharged 5413 | -7/Waste | System corruption reached 10% 5431 | -7/Waste | Met Warlord forces unprepared to attack 5436 | -7/Waste | Spotted C-40 Crusher 5437 | -7/Waste | Allies destroyed C-40 Crusher 5449 | -7/Waste | Spotted C-40 Crusher 5456 | -7/Waste | Allies destroyed C-40 Crusher 5460 | -7/Waste | Spotted C-40 Crusher 5460 | -7/Waste | Allies destroyed C-40 Crusher 5467 | -7/Waste | Found Damper Plating 5477 | -7/Waste | Spotted C-40 Crusher 5485 | -7/Waste | Found Damper Plating 5487 | -7/Waste | Destroyed C-40 Crusher 5500 | -7/Waste | Found Damper Plating 5513 | -7/Waste | EMP discharged 5539 | -7/Waste | Spotted C-40 Crusher 5543 | -7/Waste | Allies destroyed C-40 Crusher 5594 | -7/Waste | Discovered new exit (range 12) 5613 | -7/Waste | EMP discharged 5614 | -7/Waste | Entered Factory 5614 | -7/Factory | Accompanied by 11 allies 5678 | -7/Factory | Identified exit to Lower Caves 5757 | -7/Factory | Build established: Mutant 6088 | -7/Factory | Discovered new exit (range 8) 6313 | -7/Factory | Cargo convoy interrupted 6390 | -7/Factory | Entered Storage 6659 | -7/Storage | Lost 8 parts (1p2n2u3w) 6728 | -7/Storage | Garrison activated, responded to threat 6736 | -7/Storage | Core integrity fell below 50% 6738 | -7/Storage | Released all parts (1) 6740 | -7/Storage | Identified Exp. Targeting Computer 6760 | -7/Storage | Discovered new exit (range 5) 6762 | -7/Storage | Entered Factory 6762 | -6/Factory | Evolved 2 slots: Utility x2 6783 | -6/Factory | Spotted B-75 Beast 7058 | -6/Factory | Identified exit to Factory 7227 | -6/Factory | Identified exit to Lower Caves 7227 | -6/Factory | Identified exit to Extension 7265 | -6/Factory | Entered Extension 7277 | -6/Extension | Rescued a captive Derelict 7278 | -6/Extension | Rescued a captive Derelict 7278 | -6/Extension | Rescued a captive Derelict 7490 | -6/Extension | Rescued a captive Derelict 7490 | -6/Extension | Rescued a captive Derelict 7683 | -6/Extension | Rescued a captive Derelict 7683 | -6/Extension | Rescued a captive Derelict 7763 | -6/Extension | Rescued a captive Derelict 7764 | -6/Extension | Rescued a captive Derelict 7764 | -6/Extension | Spotted B-75 Beast 7780 | -6/Extension | Spotted B-75 Beast 7794 | -6/Extension | Allies destroyed B-75 Beast 7824 | -6/Extension | Allies destroyed B-75 Beast 7850 | -6/Extension | Lost 4 parts (1p1n2w) 7923 | -6/Extension | Build established: Scavenger-Mutant 7936 | -6/Extension | Rescued A7 8031 | -6/Extension | Rescued a captive Derelict 8031 | -6/Extension | Rescued a captive Derelict 8047 | -6/Extension | Rescued a captive Derelict 8048 | -6/Extension | Rescued a captive Derelict 8076 | -6/Extension | Rescued a captive Derelict 8091 | -6/Extension | Energy Cycler disabled 8195 | -6/Extension | Disrupted transfer network 8203 | -6/Extension | Discovered exit to Factory (range 10) 8210 | -6/Extension | Discovered new exit (range 6) 8226 | -6/Extension | Entered Cetus 8226 | -6/Cetus | Accompanied by 6 allies (A7) 8231 | -6/Cetus | Acquired a Cetus Manufacturing Module code from A7 8243 | -6/Cetus | Spotted Cetus Guard 8243 | -6/Cetus | Spotted Cetus Guard 8245 | -6/Cetus | Spotted Cetus Guard 8250 | -6/Cetus | Spotted Cetus Guard 8256 | -6/Cetus | Allies destroyed Cetus Guard 8258 | -6/Cetus | Allies destroyed Cetus Guard 8263 | -6/Cetus | Destroyed Cetus Guard 8266 | -6/Cetus | Allies destroyed Cetus Guard 8309 | -6/Cetus | Cetus Manufacturing Module disabled 8310 | -6/Cetus | Self-destructed Last Messages --------------- 08286_ Dropped Ripper. 08287_ Acquired 20 matter. 08289_ Dropped Imp. Light Armor Plating. 08292_ Acquired 10 matter. 08295_ System corrupted: FCS attempts to trigger Imp. KE Penetrator. 08295_ System corrupted: Imp. KE Penetrator misfires. 08295_ Dropped Flexi-carbon Leg. 08296_ Acquired Prototype Treads. 08296_ Identified Centrium Heavy Treads. 08299_ Dropped Imp. Carbon-fiber Leg. 08300_ Dropped Carbon-fiber Leg. 08300_ Acquired Centrium Heavy Treads. 08302_ Acquired 24 matter. 08305_ Slug penetrates C-30 ARC. 08305_ C-30 ARC suffers critical hit (Destroy). 08305_ Destroyed Arm. Wheel. 08305_ C-30 ARC bursts open, deploying its payload. 08305_ G-50 Soldier unfolds itself. 08306_ Acquired 4 matter. 08307_ S-27 Virus knocked back. Map ----- +----------------------------------------------------+ | ?????????????????????????????????????????????????? | | ?????????????????????????????????????????????????? | | ?????????????????????????????????????????????????? | | ?????????????????????????????????????????????????? | | ?????????????????????????????????????????????????? | | ?????????????????????????????????????????????????? | | ?????????????????????????????????????????????????? | | ?????????????????????????????????????????????????? | | ?????????????????????????????????????????????????? | | ?????????????????????????????????????????????????? | | ????????????????? ?????????????????????????????? | | ????????????????# #????????????????????????????? | | ????????????????# #????????????????????????????? | | ????????????????# #????????????????????????????? | | ????????????????# #????????????????????????????? | | ????????????????# #????????????????????????????? | | ????????????????# #????????????????????????????? | | ????????????????# #????????????????????????????? | | ????????????????# #????????????????????????????? | | ????????????????# #????????????????????????????? | | ????????????????# #????????????????????????????? | | ????????????????# #????????????????????????????? | | ???????????##???# #?????####?????"" ?????????? | | ############"#### ###### % ### ????????? | | p %![ g =%= ! ;sl g % ????????? | | *=% =%=%@ %= ;s g ????????? | | !!h/[%=% /s! ????????? | | #################;####!### ###"% s ????????? | | ????????????????###??###??####??????" ?????????? | | ?????????????????????????????????????????????????? | | ?????????????????????????????????????????????????? | | ?????????????????????????????????????????????????? | | ?????????????????????????????????????????????????? | | ?????????????????????????????????????????????????? | | ?????????????????????????????????????????????????? | | ?????????????????????????????????????????????????? | | ?????????????????????????????????????????????????? | | ?????????????????????????????????????????????????? | | ?????????????????????????????????????????????????? | | ?????????????????????????????????????????????????? | | ?????????????????????????????????????????????????? | | ?????????????????????????????????????????????????? | | ?????????????????????????????????????????????????? | | ?????????????????????????????????????????????????? | | ?????????????????????????????????????????????????? | | ?????????????????????????????????????????????????? | | ?????????????????????????????????????????????????? | | ?????????????????????????????????????????????????? | | ?????????????????????????????????????????????????? | | ?????????????????????????????????????????????????? | +----------------------------------------------------+ Best States ------------- Heat Dissipation 61 Energy Generation 19 Energy Capacity 310 Matter Stores 300 Matter Capacity 300 Sight Range 16 Robot Scan Range 20 Terrain Scan Density 10 Cloak Strength 2 EM Shielding 2 Armor Coverage 1600 Resistance: EM 90 Evasion (%) 64 Targeting Accuracy 12 Armor Integrity Analysis 20 Recoil Reduction 4 Salvage Targeting 1 Defensive Hacking 10 Item Schematics ----------------- Lrg. Storage Unit | -8/Mines | Hacked Armor Integrity Analyzer | -7/Factory | Hacked Robot Schematics ------------------ None Fabricated ------------ Hvy. Phase Cannon | x2 | -7/Factory | Preloaded Armor Integrity Analyzer | x1 | -7/Factory Alien Tech Used ----------------- None Achievements -------------- None Challenges ------------ None Game ------ Seed InsulatedCentriumChronowheel Manual? 0 Play Time 01:06:36 Cumulative 233.2 hours Start 2021.09.17 @ 20:10:39 End 2021.09.18 @ 12:51:09 Sessions 3 Manual Loads 0 Difficulty Rogue Special Mode None Game No. 297 Rogue 210 Adventurer 87 Explorer 0 Win Type - Total 5 Types 3/0/1/1/0/0/0/0/0 Lore% 71 Gallery% 79 Achievement% 67 Wizard Run 0 Options --------- ASCII 0 Keyboard 1 Movement Numpad Keybinds 0 Fullscreen 1 Font 18/Smallcaps Map View 76x50 Tactical HUD 1 Map Filters NONE Filters NONE Steam 1 RUN: 7d1ddf55-60d5-4e58-8afc-7bb614e21403